bitfinex-derivatives/quotes_BNBF0:USTF0_20251225
["timestamp","ask_amount","ask_price","bid_price","bid_amount"]
[1766661128214,1.19524698,837.46,836.63,1.19183808]
[1766661128414,1.19524698,837.45,836.63,1.19183808]
[1766661128609,1.19524698,837.44,836.63,1.19183808]
[1766661128813,1.19524698,837.43,836.63,1.19183808]
[1766661129011,1.19524698,837.42,836.63,1.19183808]
[1766661129214,1.19524698,837.41,836.63,1.19183808]
[1766661129412,1.19524698,837.4,836.63,1.19183808]
[1766661129612,0.89221715,837.49,836.63,1.19183808]
[1766661129816,1.19524698,837.48,836.63,1.19183808]
[1766661130013,1.19524698,837.47,836.63,1.19183808]
[1766661130217,1.19524698,837.46,836.63,1.19183808]
[1766661130418,1.19524698,837.45,836.63,1.19183808]
[1766661130713,1.19524698,837.44,836.63,1.19183808]
[1766661130913,1.19524698,837.43,836.63,1.19183808]
[1766661131115,1.19524698,837.42,836.63,1.19183808]
[1766661131416,1.19524698,837.41,836.63,1.19183808]
[1766661131613,1.19524698,837.4,836.63,1.19183808]
[1766661131812,0.89221715,837.49,836.63,1.19183808]
[1766661132014,1.19524698,837.48,836.63,1.19183808]
[1766661132217,1.19524698,837.47,836.63,1.19183808]
[1766661132415,1.19524698,837.46,836.63,1.19183808]
[1766661132714,1.19524698,837.45,836.63,1.19183808]
[1766661133011,1.19524698,837.44,836.63,1.19183808]
[1766661133214,1.19524698,837.43,836.63,1.19183808]
[1766661133412,1.19524698,837.42,836.63,1.19183808]
[1766661133616,1.19524698,837.41,836.63,1.19183808]
[1766661133818,1.19524698,837.4,836.63,1.19183808]
[1766661134015,0.89221715,837.49,836.63,1.19183808]
[1766661134219,1.19524711,837.48,836.63,1.19183808]
[1766661134418,1.19524711,837.47,836.63,1.19183808]
[1766661134715,1.19524711,837.46,836.63,1.19183808]
[1766661134919,1.19524711,837.45,836.63,1.19183808]
[1766661135124,1.19524711,837.44,836.63,1.19183808]
[1766661135416,1.19524711,837.43,836.63,1.19183808]
[1766661135617,1.19524711,837.42,836.63,1.19183808]
[1766661135815,1.19524711,837.41,836.63,1.19183808]
[1766661136014,1.19524711,837.4,836.63,1.19183808]
[1766661136220,0.89221715,837.49,836.63,1.19183808]
[1766661136516,1.19524711,837.48,836.63,1.19183808]
[1766661136716,1.19524711,837.47,836.63,1.19183808]
[1766661136915,1.19524711,837.46,836.63,1.19183808]
[1766661137117,1.19524711,837.45,836.63,1.19183808]
[1766661137316,1.19524711,837.44,836.63,1.19183808]
[1766661137619,1.19524711,837.43,836.63,1.19183808]
[1766661137816,1.19524711,837.42,836.63,1.19183808]
[1766661138021,1.19524711,837.41,836.63,1.19183808]
[1766661138221,1.19524711,837.4,836.63,1.19183808]
[1766661138521,0.89221715,837.49,836.63,1.19183808]
[1766661138818,1.19524711,837.48,836.63,1.19183808]
[1766661139019,1.19524711,837.47,836.63,1.19183808]
[1766661139220,1.19524711,837.46,836.63,1.19183808]
[1766661139421,1.19524711,837.45,836.63,1.19183808]
[1766661139621,1.19524711,837.44,836.63,1.19183808]
[1766661139921,1.19524711,837.43,836.63,1.19183808]
[1766661140219,1.19524711,837.42,836.63,1.19183808]
[1766661140421,1.19524711,837.41,836.63,1.19183808]
[1766661140619,1.19524711,837.4,836.63,1.19183808]
[1766661140823,0.89221715,837.49,836.63,1.19183808]
[1766661141024,1.19524711,837.48,836.63,1.19183808]
[1766661141224,1.19524711,837.47,836.63,1.19183808]
[1766661141425,1.19524711,837.46,836.63,1.19183808]
[1766661141723,1.19524711,837.45,836.63,1.19183808]
[1766661141925,1.19524711,837.44,836.63,1.19183808]
[1766661142125,1.19524711,837.43,836.63,1.19183808]
[1766661142322,1.19524711,837.42,836.64,1.19183808]
[1766661142522,1.19524711,837.41,836.64,1.19183808]
[1766661142724,1.19524711,837.4,836.64,1.19183808]
[1766661142922,0.89221715,837.49,836.64,1.19183808]
[1766661143125,1.19524711,837.48,836.64,1.19183808]
[1766661143326,1.19524711,837.47,836.64,1.19183808]
[1766661143522,1.19524711,837.46,836.64,1.19183808]
[1766661143823,1.19524711,837.45,836.64,1.19183808]
[1766661144024,1.19524711,837.44,836.64,1.19183808]
[1766661144229,1.19524711,837.43,836.64,1.19183808]
[1766661144427,1.19524711,837.42,836.64,1.19183808]
[1766661144628,1.19524711,837.41,836.64,1.19183808]
[1766661144826,1.19524711,837.4,836.64,1.19183808]
[1766661145026,0.89221715,837.49,836.64,1.19183808]
[1766661145321,1.19524711,837.48,836.64,1.19183808]
[1766661145521,1.19524711,837.47,836.64,1.19183808]
[1766661145727,1.19524711,837.46,836.64,1.19183808]
[1766661146027,1.19524711,837.45,836.64,1.19183808]
[1766661146229,1.19524711,837.44,836.64,1.19183808]
[1766661146427,1.19524711,837.43,836.64,1.19183808]
[1766661146628,1.19524711,837.42,836.64,1.19183808]
[1766661146827,1.19524711,837.41,836.64,1.19183808]
[1766661147026,1.19524711,837.4,836.64,1.19183808]
[1766661147225,0.89221715,837.49,836.64,1.19183808]
[1766661147427,1.19524711,837.48,836.64,1.19183808]
[1766661147727,1.19524711,837.47,836.64,1.19183808]
[1766661148030,1.19524711,837.46,836.64,1.19183808]
[1766661148231,1.19524711,837.45,836.64,1.19183808]
[1766661148428,1.19524711,837.44,836.64,1.19183808]
[1766661148632,1.19524711,837.43,836.64,1.19183808]
[1766661148831,1.19524711,837.42,836.64,1.19183808]
[1766661149031,1.19524711,837.41,836.64,1.19183808]
[1766661149332,1.19524711,837.4,836.64,1.19183808]
[1766661149530,0.89221715,837.49,836.64,1.19183808]
[1766661149732,1.19524711,837.48,836.64,1.19183808]
[1766661150032,1.19524711,837.47,836.64,1.19183808]
[1766661150234,1.19524711,837.46,836.64,1.19183808]
[1766661150430,1.19524711,837.45,836.64,1.19183808]
[1766661150634,1.19524711,837.44,836.64,1.19183808]
[1766661150932,1.19524711,837.43,836.64,1.19183808]
[1766661151132,1.19524711,837.42,836.64,1.19183808]
[1766661151332,1.19524711,837.41,836.64,1.19183808]
[1766661151528,1.19524711,837.4,836.64,1.19183808]
[1766661151732,0.89221715,837.49,836.64,1.19183808]
[1766661151934,1.19524711,837.48,836.64,1.19183808]
[1766661152228,1.19524711,837.47,836.64,1.19183808]
[1766661152433,1.19524711,837.46,836.64,1.19183808]
[1766661152729,1.19524711,837.45,836.64,1.19183808]
[1766661152928,1.19524711,837.44,836.64,1.19183808]
[1766661153129,1.19524711,837.43,836.64,1.19183808]
[1766661153330,1.19524711,837.42,836.64,1.19183808]
[1766661153531,1.19524711,837.41,836.64,1.19183808]
[1766661153728,1.19524711,837.4,836.64,1.19183808]
[1766661153933,0.89221715,837.49,836.64,1.19183808]
[1766661154134,1.19524711,837.48,836.64,1.19183808]
[1766661154333,1.19524711,837.47,836.64,1.19183808]
[1766661154530,1.19524711,837.46,836.64,1.19183808]
[1766661154729,1.19524711,837.45,836.64,1.19183808]
[1766661154933,1.19524711,837.44,836.64,1.19183808]
[1766661155234,1.19524711,837.43,836.64,1.19183808]
[1766661155533,1.19524642,837.42,836.64,1.19183808]
[1766661155729,1.19524642,837.41,836.64,1.19183808]
[1766661156029,1.19524642,837.4,836.64,1.19183808]
[1766661156235,0.89221715,837.49,836.64,1.19183808]
[1766661156434,1.19524642,837.48,836.64,1.19183808]
[1766661156634,1.19524642,837.47,836.64,1.19183808]
[1766661156831,1.19524642,837.46,836.64,1.19183808]
[1766661157030,1.19524642,837.45,836.64,1.19183808]
[1766661157231,1.19524642,837.44,836.64,1.19183808]
[1766661157432,1.19524642,837.43,836.64,1.19183808]
[1766661157634,1.19524642,837.42,836.64,1.19183808]
[1766661157934,1.19524642,837.41,836.64,1.19183808]
[1766661158138,0.89221715,837.5,836.64,1.19183808]
[1766661158436,1.19523424,837.49,836.64,1.19183808]
[1766661158631,1.19523424,837.48,836.64,1.19183808]
[1766661158829,1.19523424,837.47,836.64,1.19183808]
[1766661159034,1.19523424,837.46,836.65,1.19183808]
[1766661159235,1.19523424,837.45,836.65,1.19183808]
[1766661159433,1.19523424,837.44,836.65,1.19183808]
[1766661159631,1.19523424,837.43,836.65,1.19183808]
[1766661159838,1.19523424,837.42,836.65,1.19183808]
[1766661160136,0.89221715,837.51,836.65,1.19183808]
[1766661160337,1.19522345,837.5,836.65,1.19183808]
[1766661160536,1.19522345,837.49,836.65,1.19183808]
[1766661160737,1.19522345,837.48,836.65,1.19183808]
[1766661161037,1.19522345,837.47,836.68,1.19183808]
[1766661161237,1.19522345,837.46,836.67,1.19183808]
[1766661161437,0.89221715,837.55,836.69,1.19183808]
[1766661161638,1.19516165,837.54,836.69,1.19183808]
[1766661161937,1.19516165,837.53,836.69,1.19183808]
[1766661162141,1.19516165,837.52,836.68,1.19183808]
[1766661162335,1.19516165,837.51,836.68,1.19183808]
[1766661162535,1.19516165,837.5,836.68,1.19183808]
[1766661162735,1.87686073,837.49,836.48,1.79082828]
[1766661162936,1.87686073,837.48,836.48,1.79082828]
[1766661163135,1.87686073,837.47,836.48,1.79082828]
[1766661163335,0.68169908,837.46,836.48,1.79082828]
[1766661163541,0.68169908,837.45,836.48,1.79082828]
[1766661163740,0.68169908,837.44,836.48,1.79082828]
[1766661163939,0.68169908,837.43,836.48,1.79082828]
[1766661164136,0.68169908,837.42,836.48,1.79082828]
[1766661164436,0.68169908,837.41,836.48,1.79082828]
[1766661164642,0.68169908,837.4,836.48,1.79082828]
[1766661164840,0.68169908,837.39,836.48,1.79082828]
[1766661165044,0.68169908,837.38,836.48,1.79082828]
[1766661165258,0.68169908,837.37,836.48,1.79082828]
[1766661165543,0.68169908,837.36,836.48,1.79082828]
[1766661165741,0.68169908,837.35,836.48,1.79082828]
[1766661166043,0.68169908,837.34,836.47,1.79082828]
[1766661166338,0.68169908,837.33,836.47,1.79082828]
[1766661166541,0.68169908,837.32,836.47,1.79082828]
[1766661166740,0.68169908,837.31,836.47,1.79082828]
[1766661166943,0.68169908,837.3,836.47,1.79082828]
[1766661167142,0.68169908,837.29,836.47,1.79082828]
[1766661167341,0.68169908,837.28,836.46,1.79082828]
[1766661167642,0.68169908,837.27,836.46,1.79082828]
[1766661167837,0.68169908,837.26,836.46,1.79082828]
[1766661168041,0.68169908,837.25,836.46,1.79082828]
[1766661168241,0.89221715,837.52,836.46,1.79082828]
[1766661168439,1.87661716,837.51,836.46,1.79082828]
[1766661168639,1.87661716,837.5,836.46,1.79082828]
[1766661168838,1.87661716,837.49,836.46,1.79082828]
[1766661169045,1.87661716,837.48,836.46,1.79082828]
[1766661169345,1.87661716,837.47,836.46,1.79082828]
[1766661169541,0.68144268,837.46,836.46,1.79082828]
[1766661169745,0.68144268,837.45,836.46,1.79082828]
[1766661169943,0.68144268,837.44,836.46,1.79082828]
[1766661170143,0.68144268,837.43,836.46,1.79082828]
[1766661170340,0.68144268,837.42,836.46,1.79082828]
[1766661170545,0.68144268,837.41,836.46,1.79082828]
[1766661170845,0.68144268,837.4,836.46,1.79082828]
[1766661171039,0.68144268,837.39,836.46,1.79082828]
[1766661171244,0.68144268,837.38,836.46,1.79082828]
[1766661171444,0.68144268,837.37,836.46,1.79082828]
[1766661171643,0.68144268,837.36,836.46,1.79082828]
[1766661171843,0.68144268,837.35,836.46,1.79082828]
[1766661172044,0.68144268,837.34,836.46,1.79082828]
[1766661172242,0.68144268,837.33,836.46,1.79082828]
[1766661172444,0.68144268,837.32,836.46,1.79082828]
[1766661172647,0.68144268,837.31,836.46,1.79082828]
[1766661172848,0.68144268,837.3,836.46,1.79082828]
[1766661173048,0.68144268,837.29,836.46,1.79082828]
[1766661173250,0.68144268,837.28,836.46,1.79082828]
[1766661173446,0.68144268,837.27,836.46,1.79082828]
[1766661173653,0.68144268,837.26,836.46,1.79082828]
[1766661173852,0.68144268,837.25,836.46,1.79082828]
[1766661174054,0.89221715,837.52,836.46,1.79082828]
[1766661174352,1.87652669,837.51,836.46,1.79082828]
[1766661174548,1.87652669,837.5,836.46,1.79082828]
[1766661174748,1.87652669,837.49,836.46,1.79082828]
[1766661174948,1.87652669,837.48,836.46,1.79082828]
[1766661175155,0.68135144,837.47,836.46,1.79082828]
[1766661175353,0.68135144,837.46,836.46,1.79082828]
[1766661175552,0.68135144,837.45,836.46,1.79082828]
[1766661175756,0.68135144,837.44,836.46,1.79082828]
[1766661175952,0.68135144,837.43,836.46,1.79082828]
[1766661176159,0.68135144,837.42,836.46,1.79082828]
[1766661176353,0.68135144,837.41,836.46,1.79082828]
[1766661176656,0.68135144,837.4,836.46,1.79082828]
[1766661176853,0.68135144,837.39,836.46,1.79082828]
[1766661177055,0.68135144,837.38,836.46,1.79082828]
[1766661177257,0.68135144,837.37,836.46,1.79082828]
[1766661177454,0.68135144,837.36,836.46,1.79082828]
[1766661177659,0.68135144,837.35,836.46,1.79082828]
[1766661177859,0.89221715,837.52,836.46,1.79082828]
[1766661177860,0.68135144,837.34,836.46,1.79082828]
[1766661178054,0.68135144,837.33,836.46,1.79082828]
[1766661178259,0.68135144,837.32,836.46,1.79082828]
[1766661178456,0.68135144,837.31,836.46,1.79082828]
[1766661178757,0.68135144,837.3,836.46,1.79082828]
[1766661178956,0.68135144,837.29,836.46,1.79082828]
[1766661179158,0.68135144,837.28,836.46,1.79082828]
[1766661179358,0.68135144,837.27,836.46,1.79082828]
[1766661179558,0.68135144,837.26,836.46,1.79082828]
[1766661179762,0.68135144,837.25,836.46,1.79082828]
[1766661179962,0.89221715,837.52,836.46,1.79082828]
[1766661180259,1.87650117,837.51,836.46,1.79082828]
[1766661180562,1.87650117,837.5,836.46,1.79082828]
[1766661180858,1.87650117,837.49,836.46,1.79082828]
[1766661181158,1.87650117,837.48,836.46,1.79082828]
[1766661181362,1.87650117,837.47,836.46,1.79082828]
[1766661181561,0.68132566,837.46,836.46,1.79082828]
[1766661181760,0.68132566,837.45,836.46,1.79082828]
[1766661182059,0.68132566,837.44,836.46,1.79082828]
[1766661182257,0.68132566,837.43,836.46,1.79082828]
[1766661182463,0.68132566,837.42,836.46,1.79082828]
[1766661182760,0.68132566,837.41,836.46,1.79082828]
[1766661182958,0.68132566,837.4,836.46,1.79082828]
[1766661183159,0.68132566,837.39,836.46,1.79082828]
[1766661183361,0.68132566,837.38,836.46,1.79082828]
[1766661183564,0.68132566,837.37,836.46,1.79082828]
[1766661183865,0.68132566,837.36,836.46,1.79082828]
[1766661184064,0.68132566,837.35,836.46,1.79082828]
[1766661184264,0.68132566,837.34,836.46,1.79082828]
[1766661184460,0.68132566,837.33,836.46,1.79082828]
[1766661184760,0.68132566,837.32,836.46,1.79082828]
[1766661184964,0.68132566,837.31,836.46,1.79082828]
[1766661185264,0.68132566,837.3,836.46,1.79082828]
[1766661185563,0.68132566,837.29,836.46,1.79082828]
[1766661185761,0.68132566,837.28,836.46,1.79082828]
[1766661185960,0.68132566,837.27,836.46,1.79082828]
[1766661186164,0.68132566,837.26,836.46,1.79082828]
[1766661186362,0.68132566,837.25,836.46,1.79082828]
[1766661186563,0.89221715,837.52,836.46,1.79082828]
[1766661186766,1.87651226,837.51,836.46,1.79082828]
[1766661186963,1.87651226,837.5,836.46,1.79082828]
[1766661187267,1.87651226,837.49,836.46,1.79082828]
[1766661187568,1.87651226,837.48,836.46,1.79082828]
[1766661187866,0.89221715,837.52,836.46,1.79082828]
[1766661187867,1.87651226,837.47,836.46,1.79082828]
[1766661188061,0.68133756,837.46,836.46,1.79082828]
[1766661188266,0.68133756,837.45,836.46,1.79082828]
[1766661188466,0.68133756,837.44,836.46,1.79082828]
[1766661188665,0.68133756,837.43,836.46,1.79082828]
[1766661188969,0.68133756,837.42,836.46,1.79082828]
[1766661189266,0.68133756,837.41,836.46,1.79082828]
[1766661189468,0.68133756,837.4,836.46,1.79082828]
[1766661189665,0.68133756,837.39,836.46,1.79082828]
[1766661189864,0.68133756,837.38,836.46,1.79082828]
[1766661190069,0.68133756,837.37,836.46,1.79082828]
[1766661190368,0.89221715,837.52,836.46,1.79082828]
[1766661190369,0.68133756,837.36,836.46,1.79082828]
[1766661190664,0.89221715,837.52,836.46,1.79082828]
[1766661190665,0.68133756,837.35,836.46,1.79082828]
[1766661190870,0.68133756,837.34,836.46,1.79082828]
[1766661191066,0.68133756,837.33,836.46,1.79082828]
[1766661191268,0.68133756,837.32,836.46,1.79082828]
[1766661191465,0.68133756,837.31,836.46,1.79082828]
[1766661191666,0.68133756,837.3,836.46,1.79082828]
[1766661191869,0.89221715,837.52,836.46,1.79082828]
[1766661191870,0.68133756,837.29,836.46,1.79082828]
[1766661192167,0.68133756,837.28,836.46,1.79082828]
[1766661192367,0.68133756,837.27,836.46,1.79082828]
[1766661192567,0.68133756,837.26,836.46,1.79082828]
[1766661192766,0.68133756,837.25,836.46,1.79082828]
[1766661193069,0.89221715,837.52,836.46,1.79082828]
[1766661193368,1.87658602,837.51,836.46,1.79082828]
[1766661193567,1.87658602,837.5,836.46,1.79082828]
[1766661193771,1.87658602,837.49,836.46,1.79082828]
[1766661194069,1.87658602,837.48,836.46,1.79082828]
[1766661194269,1.87658602,837.47,836.46,1.79082828]
[1766661194469,0.68141158,837.46,836.46,1.79082828]
[1766661194669,0.68141158,837.45,836.46,1.79082828]
[1766661194869,0.68141158,837.44,836.46,1.79082828]
[1766661195069,0.68141158,837.43,836.46,1.79082828]
[1766661195269,0.68141158,837.42,836.46,1.79082828]
[1766661195468,0.68141158,837.41,836.46,1.79082828]
[1766661195670,0.68141158,837.4,836.46,1.79082828]
[1766661195870,0.68141158,837.39,836.46,1.79082828]
[1766661196070,0.68141158,837.38,836.46,1.79082828]
[1766661196271,0.68141158,837.37,836.46,1.79082828]
[1766661196567,0.68141158,837.36,836.46,1.79082828]
[1766661196772,0.68141158,837.35,836.46,1.79082828]
[1766661196972,0.68141158,837.34,836.46,1.79082828]
[1766661197272,0.68141158,837.33,836.46,1.79082828]
[1766661197470,0.68141158,837.32,836.46,1.79082828]
[1766661197768,0.68141158,837.31,836.46,1.79082828]
[1766661197970,0.68141158,837.3,836.46,1.79082828]
[1766661198169,0.68141158,837.29,836.47,1.79082828]
[1766661198374,0.68141158,837.28,836.47,1.79082828]
[1766661198670,0.68141158,837.27,836.47,1.79082828]
[1766661198873,0.68141158,837.26,836.47,1.79082828]
[1766661199073,0.68141158,837.25,836.47,1.79082828]
[1766661199274,0.68141158,837.24,836.47,1.79082828]
[1766661199475,0.89221715,837.51,836.47,1.79082828]
[1766661199675,1.87674216,837.5,836.47,1.79082828]
[1766661199871,1.87674216,837.49,836.47,1.79082828]
[1766661200072,1.87674216,837.48,836.47,1.79082828]
[1766661200271,1.87674216,837.47,836.47,1.79082828]
[1766661200476,1.87674216,837.46,836.47,1.79082828]
[1766661200676,0.68156669,837.45,836.47,1.79082828]
[1766661200877,0.68156669,837.44,836.47,1.79082828]
[1766661201076,0.68156669,837.43,836.47,1.79082828]
[1766661201277,0.68156669,837.42,836.47,1.79082828]
[1766661201576,0.68156669,837.41,836.47,1.79082828]
[1766661201777,0.68156669,837.4,836.47,1.79082828]
[1766661201971,0.68156669,837.39,836.47,1.79082828]
[1766661202174,0.68156669,837.38,836.47,1.79082828]
[1766661202374,0.68156669,837.37,836.48,1.79082828]
[1766661202675,0.68156669,837.36,836.48,1.79082828]
[1766661202878,0.68156669,837.35,836.48,1.79082828]
[1766661203079,0.68156669,837.34,836.48,1.79082828]
[1766661203276,0.68156669,837.33,836.48,1.79082828]
[1766661203476,0.68156669,837.32,836.48,1.79082828]
[1766661203679,0.68156669,837.31,836.48,1.79082828]
[1766661203980,0.68156669,837.3,836.48,1.79082828]
[1766661204176,0.68156669,837.29,836.48,1.79082828]
[1766661204376,0.68156669,837.28,836.48,1.79082828]
[1766661204577,0.68156669,837.27,836.48,1.79082828]
[1766661204776,0.68156669,837.26,836.48,1.79082828]
[1766661205081,0.68156669,837.25,836.48,1.79082828]
[1766661205277,0.68156669,837.24,836.48,1.79082828]
[1766661205481,0.68156669,837.23,836.48,1.79082828]
[1766661205679,0.89221715,837.49,836.48,1.79082828]
[1766661205878,1.8766545,837.48,836.48,1.79082828]
[1766661206178,1.8766545,837.47,836.48,1.79082828]
[1766661206380,1.8766545,837.46,836.48,1.79082828]
[1766661206581,1.8766545,837.45,836.48,1.79082828]
[1766661206882,0.6814798,837.44,836.48,1.79082828]
[1766661207185,0.6814798,837.43,836.48,1.79082828]
[1766661207385,0.89221715,837.49,836.48,1.79082828]
[1766661207386,0.6814798,837.42,836.48,1.79082828]
[1766661207582,0.6814798,837.41,836.48,1.79082828]
[1766661207786,0.6814798,837.4,836.48,1.79082828]
[1766661208083,0.6814798,837.39,836.49,1.79082828]
[1766661208285,0.6814798,837.38,836.49,1.79082828]
[1766661208581,0.6814798,837.37,836.49,1.79082828]
[1766661208783,0.6814798,837.36,836.49,1.79082828]
[1766661208983,0.6814798,837.35,836.49,1.79082828]
[1766661209183,0.6814798,837.34,836.49,1.79082828]
[1766661209387,0.6814798,837.33,836.49,1.79082828]
[1766661209588,0.89221715,837.49,836.49,1.79082828]
[1766661209589,0.6814798,837.32,836.49,1.79082828]
[1766661209887,0.6814798,837.31,836.49,1.79082828]
[1766661210083,0.6814798,837.3,836.49,1.79082828]
[1766661210291,0.6814798,837.29,836.49,1.79082828]
[1766661210491,0.6814798,837.28,836.49,1.79082828]
[1766661210692,0.6814798,837.27,836.49,1.79082828]
[1766661210988,0.6814798,837.26,836.49,1.79082828]
[1766661211193,0.6814798,837.25,836.49,1.79082828]
[1766661211390,0.6814798,837.24,836.49,1.79082828]
[1766661211590,0.6814798,837.23,836.49,1.79082828]
[1766661211790,0.6814798,837.22,836.49,1.79082828]
[1766661211990,0.89221715,837.49,836.49,1.79082828]
[1766661212194,1.8767317,837.48,836.49,1.79082828]
[1766661212496,1.8767317,837.47,836.49,1.79082828]
[1766661212692,1.8767317,837.46,836.49,1.79082828]
[1766661212897,1.8767317,837.45,836.49,1.79082828]
[1766661213193,1.8767317,837.44,836.49,1.79082828]
[1766661213398,0.68155635,837.43,836.49,1.79082828]
[1766661213697,0.68155635,837.42,836.49,1.79082828]
[1766661213994,0.68155635,837.41,836.49,1.79082828]
[1766661214194,0.68155635,837.4,836.49,1.79082828]
[1766661214397,0.68155635,837.39,836.49,1.79082828]
[1766661214595,0.68155635,837.38,836.49,1.79082828]
[1766661214794,0.68155635,837.37,836.49,1.79082828]
[1766661214996,0.68155635,837.36,836.49,1.79082828]
[1766661215194,0.68155635,837.35,836.49,1.79082828]
[1766661215399,0.68155635,837.34,836.49,1.79082828]
[1766661215596,0.68155635,837.33,836.49,1.79082828]
[1766661215799,0.68155635,837.32,836.49,1.79082828]
[1766661215999,0.68155635,837.31,836.49,1.79082828]
[1766661216197,0.68155635,837.3,836.49,1.79082828]
[1766661216402,0.68155635,837.29,836.49,1.79082828]
[1766661216595,0.68155635,837.28,836.49,1.79082828]
[1766661216899,0.68155635,837.27,836.49,1.79082828]
[1766661217097,0.68155635,837.26,836.49,1.79082828]
[1766661217297,0.68155635,837.25,836.49,1.79082828]
[1766661217497,0.68155635,837.24,836.49,1.79082828]
[1766661217697,0.68155635,837.23,836.49,1.79082828]
[1766661217901,0.68155635,837.22,836.49,1.79082828]
[1766661218098,0.89221715,837.49,836.49,1.79082828]
[1766661218296,1.87673175,837.48,836.49,1.79082828]
[1766661218496,1.87673175,837.47,836.49,1.79082828]
[1766661218698,1.87673175,837.46,836.49,1.79082828]
[1766661218897,1.87673175,837.45,836.47,1.79082828]
[1766661219201,1.87673175,837.44,836.47,1.79082828]
[1766661219402,1.87673175,837.43,836.46,1.79082828]
[1766661219602,0.68155671,837.42,836.46,1.79082828]
[1766661219802,0.68155671,837.41,836.46,1.79082828]
[1766661220002,0.68155671,837.4,836.46,1.79082828]
[1766661220201,0.68155671,837.39,836.46,1.79082828]
[1766661220404,0.68155671,837.38,836.46,1.79082828]
[1766661220604,0.89221715,837.47,836.46,1.79082828]
[1766661220605,0.68155671,837.37,836.46,1.79082828]
[1766661220804,0.68155671,837.36,836.46,1.79082828]
[1766661221003,0.68155671,837.35,836.46,1.79082828]
[1766661221203,0.68155671,837.34,836.46,1.79082828]
[1766661221499,0.68155671,837.33,836.46,1.79082828]
[1766661221704,0.68155671,837.32,836.46,1.79082828]
[1766661221900,0.68155671,837.31,836.46,1.79082828]
[1766661222106,0.68155671,837.3,836.46,1.79082828]
[1766661222302,0.68155671,837.29,836.46,1.79082828]
[1766661222602,0.68155671,837.28,836.46,1.79082828]
[1766661222903,0.68155671,837.27,836.46,1.79082828]
[1766661223107,0.68155671,837.26,836.46,1.79082828]
[1766661223304,0.68155671,837.25,836.46,1.79082828]
[1766661223503,0.68155671,837.24,836.46,1.79082828]
[1766661223703,0.68155671,837.23,836.46,1.79082828]
[1766661223903,0.68155671,837.22,836.46,1.79082828]
[1766661224206,0.68155671,837.21,836.46,1.79082828]
[1766661224407,0.89221715,837.48,836.46,1.79082828]
[1766661224704,1.8765642,837.47,836.46,1.79082828]
[1766661224907,1.8765642,837.46,836.46,1.79082828]
[1766661225103,1.8765642,837.45,836.46,1.79082828]
[1766661225406,1.8765642,837.44,836.46,1.79082828]
[1766661225605,1.8765642,837.43,836.46,1.79082828]
[1766661225804,0.68135886,837.42,836.46,1.79082828]
[1766661226104,0.68135886,837.41,836.46,1.79082828]
[1766661226302,0.68135886,837.4,836.46,1.79082828]
[1766661226604,0.68135886,837.39,836.46,1.79082828]
[1766661226803,0.68135886,837.38,836.46,1.79082828]
[1766661227004,0.68135886,837.37,836.46,1.79082828]
[1766661227208,0.68135886,837.36,836.46,1.79082828]
[1766661227403,0.68135886,837.35,836.46,1.79082828]
[1766661227605,0.68135886,837.34,836.46,1.79082828]
[1766661227805,0.68135886,837.33,836.46,1.79082828]
[1766661228004,0.68135886,837.32,836.46,1.79082828]
[1766661228205,0.68135886,837.31,836.46,1.79082828]
[1766661228409,0.68135886,837.3,836.46,1.79082828]
[1766661228607,0.89221715,837.48,836.46,1.79082828]
[1766661228608,0.68135886,837.29,836.46,1.79082828]
[1766661228808,0.68135886,837.28,836.46,1.79082828]
[1766661229007,0.68135886,837.27,836.46,1.79082828]
[1766661229208,0.68135886,837.26,836.46,1.79082828]
[1766661229404,0.68135886,837.25,836.46,1.79082828]
[1766661229608,0.68135886,837.24,836.46,1.79082828]
[1766661229903,0.68135886,837.23,836.46,1.79082828]
[1766661230104,0.68135886,837.22,836.46,1.79082828]
[1766661230308,0.68135886,837.21,836.46,1.79082828]
[1766661230509,0.89221715,837.48,836.45,1.79082828]
[1766661230809,1.87651038,837.47,836.45,1.79082828]
[1766661231110,1.87651038,837.46,836.45,1.79082828]
[1766661231309,0.89221715,837.48,836.45,1.79082828]
[1766661231310,1.87651038,837.45,836.45,1.79082828]
[1766661231508,1.87651038,837.44,836.45,1.79082828]
[1766661231808,1.87651038,837.43,836.45,1.79082828]
[1766661232005,0.68130646,837.42,836.45,1.79082828]
[1766661232307,0.68130646,837.41,836.46,1.79082828]
[1766661232505,0.68130646,837.4,836.46,1.79082828]
[1766661232707,0.68130646,837.39,836.46,1.79082828]
[1766661232905,0.68130646,837.38,836.46,1.79082828]
[1766661233105,0.68130646,837.37,836.46,1.79082828]
[1766661233305,0.68130646,837.36,836.46,1.79082828]
[1766661233506,0.68130646,837.35,836.46,1.79082828]
[1766661233808,0.68130646,837.34,836.46,1.79082828]
[1766661234004,0.68130646,837.33,836.46,1.79082828]
[1766661234207,0.68130646,837.32,836.46,1.79082828]
[1766661234408,0.68130646,837.31,836.46,1.79082828]
[1766661234607,0.68130646,837.3,836.46,1.79082828]
[1766661234805,0.68130646,837.29,836.46,1.79082828]
[1766661235005,0.68130646,837.28,836.46,1.79082828]
[1766661235208,0.68130646,837.27,836.46,1.79082828]
[1766661235408,0.68130646,837.26,836.46,1.79082828]
[1766661235609,0.68130646,837.25,836.46,1.79082828]
[1766661235808,0.68130646,837.24,836.46,1.79082828]